fUST/lending_fUST_20240630
["ID","MTS","AMOUNT","RATE_DAILY","PERIOD"]
[330713342,1719725442907,-4503.8,0.00016438,2]
[330713343,1719725442917,-500.0,0.00016438,2]
[330713344,1719725442927,-508.94061713,0.00016438,2]
[330713345,1719725442936,-500.0,0.00016438,2]
[330713346,1719725442946,-7492.56,0.00016438,2]
[330713347,1719725442955,-2440.34,0.00016438,2]
[330713348,1719725442965,-766.92,0.00016438,2]
[330713349,1719725442975,-500.0,0.00016438,2]
[330713350,1719725442986,-870.95,0.00016438,2]
[330713351,1719725442995,-500.67,0.00016438,2]
[330713352,1719725443005,-505.0003678,0.00016438,2]
[330713353,1719725443014,-500.0,0.00016438,2]
[330713354,1719725443024,-613.12,0.00016438,2]
[330713355,1719725443034,-580.6,0.00016438,2]
[330713356,1719725443044,-500.0,0.00016438,2]
[330713357,1719725443054,-1950.68,0.00016438,2]
[330713359,1719725443064,-1094.29,0.00016438,2]
[330713360,1719725443074,-500.0,0.00016438,2]
[330713361,1719725443084,-771.69,0.00016438,2]
[330713362,1719725443094,-500.0,0.00016438,2]
[330713364,1719725443105,-1224.86,0.00016438,2]
[330713366,1719725443115,-552.23,0.00016438,2]
[330713367,1719725443125,-500.0,0.00016438,2]
[330713368,1719725443135,-500.0,0.00016438,2]
[330713369,1719725443145,-3088.84,0.00016438,2]
[330713370,1719725443155,-500.0,0.00016438,2]
[330713371,1719725443165,-500.0,0.00016438,2]
[330713372,1719725443175,-500.0,0.00016438,2]
[330713373,1719725443184,-500.0,0.00016438,2]
[330713374,1719725443194,-1338.55,0.00016438,2]
[330713375,1719725443204,-500.0,0.00016438,2]
[330713376,1719725443214,-500.0,0.00016438,2]
[330713378,1719725443224,-500.0,0.00016438,2]
[330713379,1719725443234,-500.0,0.00016438,2]
[330713380,1719725443244,-10819.74,0.00016438,2]
[330713381,1719725443254,-4938.1,0.00016438,2]
[330713382,1719725443263,-1226.32,0.00016438,2]
[330713383,1719725443272,-500.0,0.00016438,2]
[330713384,1719725443282,-500.0,0.00016438,2]
[330713385,1719725443291,-500.0,0.00016438,2]
[330713386,1719725443301,-500.0,0.00016438,2]
[330713387,1719725443310,-500.0,0.00016438,2]
[330713388,1719725443320,-500.0,0.00016438,2]
[330713389,1719725443329,-21739.88,0.00016438,2]
[330713390,1719725443339,-500.0,0.00016438,2]
[330713391,1719725443348,-611.49,0.00016438,2]
[330713392,1719725443358,-1380.11,0.00016438,2]
[330713393,1719725443367,-157.85969961,0.00016438,2]
[330713394,1719725443377,-576.1,0.00016438,2]
[330713395,1719725443386,-2073.23,0.00016438,2]
[330713396,1719725443396,-2404.95,0.00016438,2]
[330713397,1719725443405,-1704.09,0.00016438,2]
[330713398,1719725443415,-500.0,0.00016438,2]
[330713399,1719725443425,-500.0,0.00016438,2]
[330713400,1719725443435,-1385.73,0.00016438,2]
[330713401,1719725443448,-579.06,0.00016438,2]
[330713402,1719725443458,-843.42,0.00016438,2]
[330713403,1719725443468,-500.0,0.00016438,2]
[330713404,1719725443477,-500.0,0.00016438,2]
[330713405,1719725443486,-500.0,0.00016438,2]
[330713406,1719725443495,-12965.83875132,0.00016438,2]
[330713407,1719725443725,-264.0,0.00016438,2]
[330713408,1719725443737,-9281.04114075,0.00016438,2]
[330713420,1719725446198,-22501.56010793,0.00016438,2]
[330713421,1719725446208,-500.0,0.00016438,2]
[330713422,1719725446218,-2487.34,0.00016438,2]
[330713423,1719725446228,-1939.98,0.00016438,2]
[330713424,1719725446237,-992.29,0.00016438,2]
[330713425,1719725446247,-655.91,0.00016438,2]
[330713426,1719725446256,-500.0,0.00016438,2]
[330713427,1719725446266,-5437.45,0.00016438,2]
[330713428,1719725446276,-500.0,0.00016438,2]
[330713429,1719725446285,-1363.19,0.00016438,2]
[330713430,1719725446295,-1525.34,0.00016438,2]
[330713431,1719725446304,-777.32,0.00016438,2]
[330713432,1719725446314,-828.33,0.00016438,2]
[330713433,1719725446323,-756.0,0.00016438,2]
[330713434,1719725446332,-1437.9,0.00016438,2]
[330713435,1719725446343,-568.65,0.00016438,2]
[330713436,1719725446352,-9481.71,0.00016438,2]
[330713437,1719725446361,-500.0,0.00016438,2]
[330713438,1719725446371,-500.0,0.00016438,2]
[330713439,1719725446381,-874.36,0.00016438,2]
[330713440,1719725446391,-500.0,0.00016438,2]
[330713441,1719725446401,-3168.39,0.00016438,2]
[330713442,1719725446410,-500.0,0.00016438,2]
[330713443,1719725446419,-2534.83,0.00016438,2]
[330713444,1719725446428,-500.0,0.00016438,2]
[330713445,1719725446439,-628.96,0.00016438,2]
[330713446,1719725446451,-500.0,0.00016438,2]
[330713447,1719725446460,-500.0,0.00016438,2]
[330713448,1719725446470,-500.0,0.00016438,2]
[330713449,1719725446479,-890.12,0.00016438,2]
[330713450,1719725446490,-500.0,0.00016438,2]
[330713451,1719725446499,-1166.12,0.00016438,2]
[330713452,1719725446590,-504.59121012,0.00016438,2]
[330713453,1719725446599,-660.09,0.00016438,2]
[330713454,1719725446609,-500.0,0.00016438,2]
[330713455,1719725446618,-564.24,0.00016438,2]
[330713456,1719725446627,-501.61298699,0.00016438,2]
[330713457,1719725446637,-501.29030991,0.00016438,2]
[330713458,1719725446646,-500.0,0.00016438,2]
[330713459,1719725446656,-852.45,0.00016438,2]
[330713460,1719725446665,-500.0,0.00016438,2]
[330713461,1719725446674,-648.37,0.00016438,2]
[330713462,1719725446683,-153.0,0.000165,2]
[330713463,1719725446693,-153.0,0.000165,2]
[330713464,1719725446703,-153.0,0.000165,2]
[330713465,1719725446712,-197.8058964,0.000165,2]
[330713466,1719725446721,-153.0,0.000165,2]
[330713467,1719725446731,-153.0,0.000165,2]
[330713468,1719725446741,-153.0,0.000165,2]
[330713469,1719725446750,-500.0,0.000165,2]
[330713470,1719725446760,-892.0,0.000165,2]
[330713471,1719725446769,-162.0,0.0001653,2]
[330713472,1719725446778,-162.0,0.0001653,2]
[330713473,1719725446787,-162.0,0.0001653,2]
[330713474,1719725446796,-162.0,0.0001653,2]
[330713475,1719725446805,-162.0,0.0001653,2]
[330713476,1719725446814,-162.0,0.0001653,2]
[330713477,1719725446824,-162.0,0.0001653,2]
[330713478,1719725446833,-162.0,0.0001653,2]
[330713479,1719725446843,-162.0,0.0001653,2]
[330713480,1719725446852,-162.0,0.0001653,2]
[330713481,1719725446862,-162.0,0.0001653,2]
[330713482,1719725446871,-162.0,0.0001653,2]
[330713483,1719725446881,-162.0,0.0001653,2]
[330713484,1719725446890,-162.0,0.0001653,2]
[330713485,1719725446899,-162.0,0.0001653,2]
[330713486,1719725446908,-162.0,0.0001653,2]
[330713487,1719725446918,-162.0,0.0001653,2]
[330713488,1719725446927,-162.0,0.0001653,2]
[330713489,1719725446936,-162.0,0.0001653,2]
[330713490,1719725446946,-162.0,0.0001653,2]
[330713491,1719725446955,-162.0,0.0001653,2]
[330713492,1719725446964,-162.0,0.0001653,2]
[330713493,1719725446974,-162.0,0.0001653,2]
[330713494,1719725446983,-162.0,0.0001653,2]
[330713495,1719725446992,-162.0,0.0001653,2]
[330713496,1719725447001,-162.0,0.0001653,2]
[330713497,1719725447011,-162.0,0.0001653,2]
[330713498,1719725447020,-162.0,0.0001653,2]
[330713499,1719725447029,-162.0,0.0001653,2]
[330713500,1719725447039,-162.0,0.0001653,2]
[330713501,1719725447048,-162.0,0.0001653,2]
[330713502,1719725447057,-162.0,0.0001653,2]
[330713503,1719725447069,-162.0,0.0001653,2]
[330713504,1719725447079,-162.0,0.0001653,2]
[330713505,1719725447088,-162.0,0.0001653,2]
[330713506,1719725447098,-162.0,0.0001653,2]
[330713507,1719725447108,-162.0,0.0001653,2]
[330713508,1719725447118,-162.0,0.0001653,2]
[330713509,1719725447133,-162.0,0.0001653,2]
[330713510,1719725447154,-162.0,0.0001653,2]
[330713511,1719725447171,-162.0,0.0001653,2]
[330713512,1719725447190,-153.0,0.0001653,2]
[330713513,1719725447211,-162.0,0.0001653,2]
[330713514,1719725447229,-162.0,0.0001653,2]
[330713515,1719725447245,-162.0,0.0001653,2]
[330713516,1719725447264,-162.0,0.0001653,2]
[330713517,1719725447278,-162.0,0.0001653,2]
[330713518,1719725447294,-162.0,0.0001653,2]
[330713519,1719725447315,-162.0,0.0001653,2]
[330713520,1719725447331,-162.0,0.0001653,2]
[330713521,1719725447346,-162.0,0.0001653,2]
[330713522,1719725447365,-162.0,0.0001653,2]
[330713523,1719725447379,-162.0,0.0001653,2]
[330713524,1719725447396,-162.0,0.0001653,2]
[330713525,1719725447409,-162.0,0.0001653,2]
[330713526,1719725447424,-162.0,0.0001653,2]
[330713527,1719725447443,-162.0,0.0001653,2]
[330713528,1719725447458,-162.0,0.0001653,2]
[330713529,1719725447472,-162.0,0.0001653,2]
[330713530,1719725447487,-162.0,0.0001653,2]
[330713531,1719725447501,-162.0,0.0001653,2]
[330713532,1719725447515,-162.0,0.0001653,2]
[330713533,1719725447529,-162.0,0.0001653,2]
[330713534,1719725447545,-162.0,0.0001653,2]
[330713535,1719725447558,-162.0,0.0001653,2]
[330713536,1719725447572,-162.0,0.0001653,2]
[330713537,1719725447587,-162.0,0.0001653,2]
[330713538,1719725447602,-162.0,0.0001653,2]
[330713539,1719725447617,-162.0,0.0001653,2]
[330713540,1719725447631,-162.0,0.0001653,2]
[330713541,1719725447645,-162.0,0.0001653,2]
[330713542,1719725447660,-153.362629,0.00016549,2]
[330713543,1719725447674,-734.971554,0.00016549,2]
[330713544,1719725447688,-1553.096344,0.00016549,2]
[330713545,1719725447703,-152.481495,0.00016549,2]
[330713546,1719725447717,-153.0,0.000166,2]
[330713547,1719725447731,-153.0,0.000166,2]
[330713548,1719725447745,-153.0,0.000166,2]
[330713549,1719725447759,-153.0,0.000166,2]
[330713550,1719725447775,-773.0,0.00016621,2]
[330713551,1719725447788,-151.627,0.00016621,2]
[330713552,1719725447803,-773.9,0.00016676,2]
[330713553,1719725447817,-216.2,0.00016676,2]
[330713554,1719725447831,-150.0,0.00016681,2]
[330713555,1719725447846,-205.0,0.00016715,2]
[330713556,1719725447860,-734.971554,0.00016756,2]
[330713557,1719725447874,-1553.096344,0.00016756,2]
[330713558,1719725447889,-300.48597178,0.00016762,2]
[330713559,1719725447905,-773.9,0.00016769,2]
[330713560,1719725447914,-216.2,0.00016769,2]
[330713561,1719725447924,-308.47949848,0.00016819,2]
[330713562,1719725447933,-1006.22925861,0.00016838,2]
[330713563,1719725447942,-773.9,0.00016863,2]
[330713564,1719725447951,-216.2,0.00016863,2]
[330713565,1719725447961,-773.9,0.00016957,2]
[330713566,1719725447970,-216.2,0.00016957,2]
[330713567,1719725447980,-734.971554,0.00016963,2]
[330713568,1719725448156,-1553.096344,0.00016963,2]
[330713569,1719725448167,-36630.52328655,0.0001698,2]
[330713570,1719725448176,-1764.0,0.00016985,2]
[330713571,1719725448186,-1764.0,0.00016985,2]
[330713572,1719725448195,-1764.0,0.00016985,2]
[330713573,1719725448205,-1764.0,0.00016985,2]
[330713574,1719725448214,-1764.0,0.00016985,2]
[330713575,1719725448223,-1764.0,0.00016985,2]
[330713576,1719725448233,-1764.0,0.00016985,2]
[330713577,1719725448242,-1764.0,0.00016985,2]
[330713578,1719725448252,-1764.09262813,0.00016985,2]
[330713579,1719725448261,-151.0,0.00016985,2]
[330713580,1719725448271,-998.49369046,0.00016986,2]
[330713581,1719725448494,-1036.64630954,0.00016986,2]
[330713582,1719725448504,-1767.35,0.00016986,2]
[330713583,1719725448514,-559.33,0.00016986,2]
[330713584,1719725448525,-500.0,0.00016986,2]
[330713585,1719725448534,-500.0,0.00016986,2]
[330713586,1719725448543,-756.99,0.00016986,2]
[330713587,1719725448553,-500.0,0.00016986,2]
[330713588,1719725448562,-372.74956432,0.00016986,2]
[330713589,1719725475757,1152.5,0.00024,60]
[330713590,1719725737521,202.30087374,0.00014999,2]
[330713592,1719725811315,3769.18827951,0.00014999,2]
[330713593,1719725840067,258.24743035,0.0001,2]
[330713748,1719726638635,-300.0,0.00015167,2]
[330713750,1719726638644,-24900.0,0.00015168,2]
[330713752,1719726638654,-190.78309208,0.000159,2]
[330713754,1719726638664,-170.53092788,0.00015995,2]
[330713756,1719726638673,-499.99999999,0.00016,2]
[330713758,1719726638682,-991.39331229,0.00016238,2]
[330713760,1719726638692,-22471.6586015,0.00016338,2]
[330713762,1719726638702,-6882.96815592,0.00016338,2]
[330713764,1719726638712,-2000.0,0.00016338,2]
[330713766,1719726638721,-786.90428379,0.00016338,2]
[330713768,1719726638731,-10590.57350195,0.00016436,2]
[330713770,1719726638741,-501.12905021,0.00016438,2]
[330713771,1719726638750,-568.43,0.00016438,2]
[330713773,1719726638759,-500.0,0.00016438,2]
[330713775,1719726638769,-500.0,0.00016438,2]
[330713777,1719726638778,-613.6880139,0.00016438,2]
[330713779,1719726638788,-500.0,0.00016438,2]
[330713780,1719726638798,-500.0,0.00016438,2]
[330713782,1719726638807,-722.7,0.00016438,2]
[330713784,1719726638816,-500.0,0.00016438,2]
[330713786,1719726638827,-500.0,0.00016438,2]
[330713788,1719726638836,-500.0,0.00016438,2]
[330713790,1719726638845,-579.06,0.00016438,2]
[330713792,1719726638854,-793.71,0.00016438,2]
[330713794,1719726638864,-505.69048026,0.00016438,2]
[330713796,1719726638879,-500.0,0.00016438,2]
[330713798,1719726638888,-500.0,0.00016438,2]
[330713800,1719726638898,-500.0,0.00016438,2]
[330713802,1719726638907,-500.0,0.00016438,2]
[330713805,1719726638918,-1682.43,0.00016438,2]
[330713806,1719726638927,-548.5553125,0.00016438,2]
[330713808,1719726638936,-500.0,0.00016438,2]
[330713810,1719726638946,-500.0,0.00016438,2]
[330713812,1719726638955,-500.0,0.00016438,2]
[330713814,1719726638966,-500.0,0.00016438,2]
[330713816,1719726638976,-356.35071583,0.00016438,2]
[330713818,1719726638986,-289.60180545,0.00016438,2]
[330713820,1719726638995,-500.0,0.00016438,2]
[330713822,1719726639003,-500.0,0.00016438,2]
[330713824,1719726639013,-500.0,0.00016438,2]
[330713826,1719726639023,-500.0,0.00016438,2]
[330713828,1719726639033,-500.0,0.00016438,2]
[330713830,1719726639043,-500.0,0.00016438,2]
[330713832,1719726639052,-500.0,0.00016438,2]
[330713834,1719726639062,-962.72,0.00016438,2]
[330713836,1719726639073,-546.67653894,0.00016438,2]
[330713838,1719726639083,-500.0,0.00016438,2]
[330713840,1719726639094,-500.0,0.00016438,2]
[330713842,1719726639103,-500.0,0.00016438,2]
[330713844,1719726639113,-500.0,0.00016438,2]
[330713845,1719726639123,-500.0,0.00016438,2]
[330713846,1719726639134,-504.76597626,0.00016438,2]
[330713848,1719726639144,-500.74695994,0.00016438,2]
[330713850,1719726639154,-500.0,0.00016438,2]
[330713851,1719726639164,-605.53090476,0.00016438,2]
[330713853,1719726639174,-500.0,0.00016438,2]
[330713855,1719726639183,-508.10731312,0.00016438,2]
[330713857,1719726639193,-711.91,0.00016438,2]
[330713859,1719726639203,-500.0,0.00016438,2]
[330713860,1719726639213,-500.0,0.00016438,2]
[330713862,1719726639222,-506.07113532,0.00016438,2]
[330713864,1719726639233,-500.0,0.00016438,2]
[330713866,1719726639243,-1754.19,0.00016438,2]
[330713867,1719726639252,-508.18186603,0.00016438,2]
[330713869,1719726639261,-500.0,0.00016438,2]
[330713871,1719726639271,-500.0,0.00016438,2]
[330713873,1719726639281,-560.18,0.00016438,2]
[330713874,1719726639290,-501.9053898,0.00016438,2]
[330713875,1719726639300,-651.93,0.00016438,2]
[330713876,1719726639310,-838.23,0.00016438,2]
[330713877,1719726639319,-500.0,0.00016438,2]
[330713878,1719726639329,-500.0,0.00016438,2]
[330713879,1719726639338,-500.0,0.00016438,2]
[330713880,1719726639348,-500.0,0.00016438,2]
[330713881,1719726639358,-502.60302224,0.00016438,2]
[330713882,1719726639367,-500.0,0.00016438,2]
[330713883,1719726639377,-500.0,0.00016438,2]
[330713884,1719726639388,-500.0,0.00016438,2]
[330713885,1719726639397,-500.0,0.00016438,2]
[330713886,1719726639407,-647.25,0.00016438,2]
[330713887,1719726639416,-507.55763966,0.00016438,2]
[330713888,1719726639426,-541.28,0.00016438,2]
[330713889,1719726639436,-356.11122265,0.00016438,2]
[330713890,1719726639445,-728.09,0.00016438,2]
[330713891,1719726639455,-500.0,0.00016438,2]
[330713892,1719726639465,-500.0,0.00016438,2]
[330713893,1719726639479,-1122.76,0.00016438,2]
[330713894,1719726639490,-504.43843048,0.00016438,2]
[330713895,1719726639500,-625.34,0.00016438,2]
[330713896,1719726639510,-500.0,0.00016438,2]
[330713897,1719726639521,-24536.05,0.00016438,2]
[330713898,1719726639531,-683.48,0.00016438,2]
[330713899,1719726639541,-503.80395665,0.00016438,2]
[330713900,1719726639551,-453.7514208,0.00016438,2]
[330713901,1719726639561,-500.0,0.00016438,2]
[330713902,1719726639571,-500.0,0.00016438,2]
[330713903,1719726639581,-500.0,0.00016438,2]
[330713904,1719726639591,-745.82,0.00016438,2]
[330713905,1719726639601,-500.0,0.00016438,2]
[330713906,1719726639611,-523.21322067,0.00016438,2]
[330713907,1719726639621,-500.0,0.00016438,2]
[330713908,1719726639631,-500.0,0.00016438,2]
[330713909,1719726639642,-814.4,0.00016438,2]
[330713910,1719726639653,-2733.48,0.00016438,2]
[330713911,1719726639665,-500.0,0.00016438,2]
[330713912,1719726639675,-600.4,0.00016438,2]
[330713913,1719726639685,-500.0,0.00016438,2]
[330713914,1719726639696,-208.584817,0.00016438,2]
[330713915,1719726639707,-504.25480397,0.00016438,2]
[330713916,1719726639717,-283.41994305,0.00016438,2]
[330713917,1719726639728,-509.77482491,0.00016438,2]
[330713918,1719726639739,-500.0,0.00016438,2]
[330713919,1719726639749,-500.0,0.00016438,2]
[330713920,1719726639759,-500.0,0.00016438,2]
[330713921,1719726639769,-500.0,0.00016438,2]
[330713922,1719726639779,-500.0,0.00016438,2]
[330713923,1719726639789,-508.39491225,0.00016438,2]
[330713924,1719726639799,-500.0,0.00016438,2]
[330713925,1719726639809,-501.16079115,0.00016438,2]
[330713926,1719726639819,-508.89228459,0.00016438,2]
[330713927,1719726639830,-500.0,0.00016438,2]
[330713928,1719726639840,-500.0,0.00016438,2]
[330713929,1719726639850,-500.0,0.00016438,2]
[330713930,1719726639860,-500.0,0.00016438,2]
[330713931,1719726639872,-500.0,0.00016438,2]
[330713932,1719726639976,-500.0,0.00016438,2]
[330713933,1719726639988,-500.0,0.00016438,2]
[330713934,1719726639998,-500.0,0.00016438,2]
[330713935,1719726640008,-500.0,0.00016438,2]
[330713936,1719726640018,-909.73,0.00016438,2]
[330713937,1719726640029,-500.0,0.00016438,2]
[330713938,1719726640038,-500.0,0.00016438,2]
[330713939,1719726640048,-500.0,0.00016438,2]
[330713940,1719726640058,-500.0,0.00016438,2]
[330713941,1719726640068,-500.0,0.00016438,2]
[330713942,1719726640078,-500.0,0.00016438,2]
[330713943,1719726640087,-500.0,0.00016438,2]
[330713944,1719726640097,-500.0,0.00016438,2]
[330713945,1719726640107,-500.0,0.00016438,2]
[330713946,1719726640117,-500.0,0.00016438,2]
[330713947,1719726640127,-218.19903347,0.00016438,2]
[330713949,1719726640138,-500.0,0.00016438,2]
[330713951,1719726640148,-610.51,0.00016438,2]
[330713952,1719726640157,-502.51886027,0.00016438,2]
[330713953,1719726640167,-500.0,0.00016438,2]
[330713954,1719726640176,-525.72491005,0.00016438,2]
[330713955,1719726640185,-500.0,0.00016438,2]
[330713956,1719726640194,-811.63,0.00016438,2]
[330713957,1719726640204,-500.0,0.00016438,2]
[330713958,1719726640213,-500.0,0.00016438,2]
[330713959,1719726640223,-778.99,0.00016438,2]
[330713960,1719726640232,-500.0,0.00016438,2]
[330713961,1719726640241,-502.86841912,0.00016438,2]
[330713962,1719726640250,-1512.02,0.00016438,2]
[330713963,1719726640260,-538.00787098,0.00016438,2]
[330713964,1719726640269,-3196.31,0.00016438,2]
[330713965,1719726640278,-1656.37,0.00016438,2]
[330713966,1719726640288,-622.24,0.00016438,2]
[330713967,1719726640298,-500.0,0.00016438,2]
[330713968,1719726640308,-555.92,0.00016438,2]
[330713969,1719726640317,-610.56,0.00016438,2]
[330713971,1719726640328,-500.0,0.00016438,2]
[330713972,1719726640338,-500.0,0.00016438,2]
[330713974,1719726640348,-1512.82,0.00016438,2]
[330713976,1719726640358,-961.87,0.00016438,2]
[330713978,1719726640367,-501.08655905,0.00016438,2]
[330713979,1719726640377,-500.0,0.00016438,2]
[330713980,1719726640388,-500.0,0.00016438,2]
[330713982,1719726640398,-500.0,0.00016438,2]
[330713983,1719726640408,-1256.43,0.00016438,2]
[330713984,1719726640417,-500.0,0.00016438,2]
[330713985,1719726640427,-501.97196758,0.00016438,2]
[330713986,1719726640437,-500.0,0.00016438,2]
[330713987,1719726640446,-500.0,0.00016438,2]
[330713988,1719726640456,-500.0,0.00016438,2]
[330713990,1719726640466,-502.72826924,0.00016438,2]
[330713991,1719726640478,-645.19,0.00016438,2]
[330713992,1719726640487,-500.0,0.00016438,2]
[330713993,1719726640497,-500.0,0.00016438,2]
[330713994,1719726640507,-506.82,0.00016438,2]
[330713995,1719726640518,-1068.11,0.00016438,2]
[330713996,1719726640528,-3739.56,0.00016438,2]
[330713997,1719726640538,-843.42,0.00016438,2]
[330713999,1719726640548,-500.0,0.00016438,2]
[330714000,1719726640559,-500.0,0.00016438,2]
[330714001,1719726640569,-500.0,0.00016438,2]
[330714002,1719726640579,-500.0,0.00016438,2]
[330714003,1719726640589,-500.0,0.00016438,2]
[330714004,1719726640600,-500.0,0.00016438,2]
[330714005,1719726640610,-502.3572383,0.00016438,2]
[330714006,1719726640620,-188.09167626,0.00016438,2]
[330714007,1719726640630,-500.0,0.00016438,2]
[330714008,1719726640640,-303.37565027,0.00016438,2]
[330714009,1719726640651,-500.0,0.00016438,2]
[330714011,1719726640660,-500.0,0.00016438,2]
[330714013,1719726640670,-623.77,0.00016438,2]
[330714015,1719726640680,-744.13,0.00016438,2]
[330714017,1719726640690,-500.0,0.00016438,2]
[330714019,1719726640700,-500.0,0.00016438,2]
[330714021,1719726640709,-500.0,0.00016438,2]
[330714023,1719726640719,-521.84,0.00016438,2]
[330714025,1719726640728,-500.0,0.00016438,2]
[330714027,1719726640738,-580.6,0.00016438,2]
[330714029,1719726640747,-500.0,0.00016438,2]
[330714031,1719726640758,-513.57,0.00016438,2]
[330714032,1719726640767,-500.0,0.00016438,2]
[330714033,1719726640776,-543.63,0.00016438,2]
[330714034,1719726640786,-500.0,0.00016438,2]
[330714035,1719726640795,-500.0,0.00016438,2]
[330714036,1719726640805,-501.72680499,0.00016438,2]
[330714037,1719726640815,-500.15,0.00016438,2]
[330714038,1719726640824,-500.0,0.00016438,2]
[330714039,1719726640833,-500.0,0.00016438,2]
[330714040,1719726640842,-697.61,0.00016438,2]
[330714041,1719726640851,-500.0,0.00016438,2]
[330714042,1719726640862,-500.0,0.00016438,2]
[330714043,1719726640871,-500.0,0.00016438,2]
[330714044,1719726640886,-500.0,0.00016438,2]
[330714045,1719726640896,-508.94061713,0.00016438,2]
[330714046,1719726640905,-505.0003678,0.00016438,2]
[330714047,1719726640914,-635.80447038,0.00016438,2]
[330714048,1719726640925,-744.93,0.00016438,2]
[330714049,1719726640934,-501.00203503,0.00016438,2]
[330714050,1719726640944,-963.57,0.00016438,2]
[330714051,1719726640954,-500.0,0.00016438,2]
[330714052,1719726640964,-766.92,0.00016438,2]
[330714053,1719726640974,-500.0,0.00016438,2]
[330714054,1719726640984,-518.6968974,0.00016438,2]
[330714055,1719726640993,-3242.34,0.00016438,2]
[330714056,1719726641003,-500.0,0.00016438,2]
[330714057,1719726641013,-515.09824929,0.00016438,2]
[330714058,1719726641022,-500.0,0.00016438,2]
[330714059,1719726641032,-500.0,0.00016438,2]
[330714060,1719726641041,-3921.99,0.00016438,2]
[330714061,1719726641050,-500.0,0.00016438,2]
[330714062,1719726641060,-500.0,0.00016438,2]
[330714063,1719726641069,-500.0,0.00016438,2]
[330714064,1719726641078,-500.0,0.00016438,2]
[330714065,1719726641087,-2964.06,0.00016438,2]
[330714066,1719726641097,-1034.21,0.00016438,2]
[330714067,1719726641107,-500.0,0.00016438,2]
[330714068,1719726641116,-837.93,0.00016438,2]
[330714069,1719726641125,-500.0,0.00016438,2]
[330714070,1719726641135,-500.0,0.00016438,2]
[330714071,1719726641144,-500.0,0.00016438,2]
[330714072,1719726641153,-500.0,0.00016438,2]
[330714073,1719726641162,-500.0,0.00016438,2]
[330714074,1719726641171,-500.0,0.00016438,2]
[330714075,1719726641256,-611.49,0.00016438,2]
[330714076,1719726641267,-1288.1,0.00016438,2]
[330714077,1719726641276,-540.73,0.00016438,2]
[330714078,1719726641285,-627.36491239,0.00016438,2]
[330714079,1719726641294,-501.5096367,0.00016438,2]
[330714080,1719726641303,-1938.97,0.00016438,2]
[330714081,1719726641312,-2049.93,0.00016438,2]
[330714082,1719726641321,-500.0,0.00016438,2]
[330714083,1719726641330,-500.0,0.00016438,2]
[330714084,1719726641340,-1770.55,0.00016438,2]
[330714085,1719726641349,-1859.15,0.00016438,2]
[330714086,1719726641358,-500.0,0.00016438,2]
[330714087,1719726641367,-852.01,0.00016438,2]
[330714088,1719726641376,-500.0,0.00016438,2]
[330714089,1719726641387,-500.0,0.00016438,2]
[330714090,1719726641396,-516.65,0.00016438,2]